[Event "Romanian Rapid Open 2022"]
[Site "Sebes"]
[Date "2022.12.02"]
[Round "5.39"]
[White "Roncea, Ioan-Aurel"]
[Black "Danila, Tudor-Gabriel"]
[Result "0-1"]
[ECO "D30"]
[WhiteElo "1461"]
[BlackElo "1939"]
[Annotator "TA"]
[PlyCount "102"]
[EventDate "2022.12.02"]
[EventType "rapid"]
[EventCountry "ROU"]
[SourceTitle "playchess.com"]
[Source "ChessBase"]
[SourceQuality "1"]
[TimeControl "600+5"]

{[%evp 9,102,0,6,0,-3,-12,-4,-37,-12,-18,-14,-13,-12,-29,-26,-28,-27,-30,-29,-58,-49,-70,-60,-81,-60,-133,-125,-232,-189,-227,-227,-255,-243,-260,-182,-233,-238,-225,-224,-236,-230,-261,-257,-253,-250,-256,-262,-266,-256,-493,-500,-499,-492,-498,-483,-487,-475,-660,-574,-661,-652,-718,-739,-739,-739,-725,-688,-706,-680,-670,-652,-671,-660,-655,-577,-581,-539,-904,-856,-1074,-1134,-5385,-4393,-7432,-5722,-2499,-1362,-29970,-29971,-29987,-29988,-29992,-29993,-29993,-29993]} 1. d4 {[%emt 0:00:03]} Nf6 {[%emt 0:00:01]} 2. Nf3 {[%emt 0:00:03]} e6 {[%emt 0:00:00]} 3. c4 {[%emt 0:00:12]} d5 {[%emt 0:00:06]} 4. Bg5 {[%emt 0:00:09]} Be7 {[%emt 0:00:08]} 5. Bxf6 {[%emt 0:00:07]} Bxf6 {[%emt 0:00:03]} 6. e3 {[%emt 0:00:02] D30: Queen's Gambit Declined: Systems without Nc3.} O-O {[%emt 0:00:04][%cal Oc7c5]} 7. cxd5 {[%emt 0:00:04]} exd5 {[%emt 0:00:09][%cal Oc7c5]} 8. Be2 {[%emt 0:00:04] The position is equal.} c6 {[%emt 0:00:12]} (8... c5 $5) 9. O-O {[%emt 0:00:13]} Nd7 {[%emt 0:00:17][%cal Bb8d7,Bd7f6,Bf6e4][%mdl 32]} 10. Nc3 {[%emt 0:00:13]} Be7 {[%emt 0:00:01] [#]} 11. a3 $146 {[%emt 0:00:07]} ({Predecessor:} 11. Rc1 Nf6 12. h3 Bf5 13. Bd3 Bxd3 14. Qxd3 Bd6 15. Rfe1 Re8 16. e4 dxe4 17. Nxe4 {½-½ (43) Sponagel,G (1500)-Haering,W (1500) Bad Woerishofen 2001}) 11... Bd6 {[%emt 0:00:22]} 12. h3 {[%emt 0:00:03]} Nf6 {[%emt 0:00:13]} 13. Bd3 {[%emt 0:00:34]} Re8 {[%emt 0:00:17]} 14. Re1 {[%emt 0:00:03]} Ne4 {[%emt 0:00:04]} 15. Qc2 {[%emt 0:00:16][%cal Rc3e4]} f5 {[%emt 0:00:34]} 16. Nd2 {[%emt 0:00:18] Black continues to play with concentration.} g6 {[%emt 0:00:14] Black is more active.} 17. Bxe4 {[%emt 0:01:16]} ({White should play} 17. b4 $15) 17... fxe4 $17 {[%emt 0:00:04]} 18. Rf1 {[%emt 0:00:24]} (18. f3 $17 exf3 19. Nxf3) 18... Qg5 {[%emt 0:00:16]} 19. f4 {[%emt 0:00:12]} exf3 {[%emt 0:00:25]} 20. Nxf3 {[%emt 0:00:12]} Qxe3+ {[%emt 0:00:03]} 21. Qf2 {[%emt 0:00:09]} Qf4 {[%emt 0:00:39]} 22. Qd2 {[%emt 0:02:49]} (22. Ne2 $142 Qf6 23. Rae1) 22... Qxd2 $19 {[%emt 0:00:17]} 23. Nxd2 {[%emt 0:00:03]} Bd7 {[%emt 0:00:29]} 24. Rae1 {[%emt 0:00:04]} Bg3 {[%emt 0:00:14]} 25. Rxe8+ {[%emt 0:00:19]} Rxe8 {[%emt 0:00:02]} 26. Rf3 {[%emt 0:00:26]} Be1 {[%emt 0:00:30]} 27. Nf1 {[%emt 0:00:17]} Bh4 {[%emt 0:00:08]} 28. Re3 {[%emt 0:00:34]} Rf8 {[%emt 0:00:05] [#] ...Bf2+ is the strong threat.} 29. Rf3 {[%emt 0:00:05] Inhibits Bf2+.} (29. Ng3) 29... Rxf3 {[%emt 0:00:02]} 30. gxf3 {[%emt 0:00:03]} Bxh3 {[%emt 0:00:01][%mdl 4096] Endgame KBB-KNN} 31. Ne3 {[%emt 0:00:02]} Kf7 {[%emt 0:00:12]} 32. Kh2 {[%emt 0:00:02]} Bd7 {[%emt 0:00:02]} 33. Ng4 {[%emt 0:00:08]} Bxg4 {[%emt 0:00:06]} 34. fxg4 {[%emt 0:00:01] KB-KN} Kf6 {[%emt 0:00:02]} 35. Kh3 {[%emt 0:00:02]} Bf2 {[%emt 0:00:06]} 36. Ne2 {[%emt 0:00:04]} Kg5 {[%emt 0:00:02]} 37. Kg2 {[%emt 0:00:03]} Be3 {[%emt 0:00:02]} 38. Kf3 {[%emt 0:00:02]} Bd2 {[%emt 0:00:04]} 39. b3 {[%emt 0:00:16]} Ba5 {[%emt 0:00:30]} 40. Ng1 {[%emt 0:00:28]} Bb6 {[%emt 0:00:18]} 41. Ne2 {[%emt 0:00:09]} Bc7 {[%emt 0:00:08]} 42. a4 {[%emt 0:00:44]} Kh4 {[%emt 0:00:14]} 43. b4 {[%emt 0:00:25]} a6 {[%emt 0:00:45]} 44. Ng1 {[%emt 0:00:24]} Bd6 {[%emt 0:00:08]} 45. b5 {[%emt 0:00:05]} axb5 {[%emt 0:00:01]} 46. a5 {[%emt 0:00:03]} Bc7 {[%emt 0:00:06][%cal Ob5b4] [#] ( -> ...b4!)} 47. Ne2 {[%emt 0:00:09] Against b4} Bxa5 {[%emt 0:00:16] Threatens to win with ...Bd2.} 48. Nf4 {[%emt 0:00:03]} b4 {[%emt 0:00:07] Black mates.} 49. Ne6 {[%emt 0:00:06]} b3 {[%emt 0:00:04]} 50. Nc5 {[%emt 0:00:09]} b2 {[%emt 0:00:02]} 51. Nb3 {[%emt 0:00:03]} b1=Q {[%emt 0:00:03] Weighted Error Value: White=0.33/Black=0.08 (flawless)} 0-1

[Event "Romanian Rapid Open 2022"]
[Site "Sebes"]
[Date "2022.12.02"]
[Round "5.40"]
[White "Maresanu, Mina-Andrei"]
[Black "Enachi, Daniela-Lorena"]
[Result "1-0"]
[ECO "B40"]
[WhiteElo "1877"]
[BlackElo "1227"]
[Annotator "NA RC COMBH"]
[PlyCount "107"]
[EventDate "2022.12.02"]
[EventType "rapid"]
[EventCountry "ROU"]
[SourceTitle "playchess.com"]
[Source "ChessBase"]
[SourceQuality "1"]
[TimeControl "600+5"]

1. e4 {[%emt 0:00:03]} c5 {[%emt 0:00:00]} 2. Nf3 {[%emt 0:00:04]} Nc6 {[%emt 0:00:02]} 3. Nc3 {[%emt 0:00:16]} e6 {[%emt 0:00:04]} 4. Be2 {[%emt 0:00:09]} Nf6 {[%emt 0:00:05]} 5. O-O {[%emt 0:00:04]} d5 {[%emt 0:00:06]} 6. exd5 {[%emt 0:00:05]} exd5 {[%emt 0:00:29]} 7. d4 {[%emt 0:00:04]} Be6 {[%emt 0:00:29]} 8. Re1 {[%emt 0:00:09]} Be7 {[%emt 0:00:03]} 9. Be3 {[%emt 0:00:29]} cxd4 {[%emt 0:00:12]} 10. Nxd4 {[%emt 0:00:03]} Nxd4 {[%emt 0:00:09]} 11. Bxd4 {[%emt 0:00:22]} O-O {[%emt 0:00:08]} 12. Bf3 {[%emt 0:00:07]} Bb4 {[%emt 0:01:05]} 13. a3 {[%emt 0:00:27]} Bxc3 {[%emt 0:01:38]} 14. Bxc3 {[%emt 0:00:03]} Rc8 {[%emt 0:01:05]} 15. Qd2 {[%emt 0:00:22]} b6 {[%emt 0:01:23]} 16. Rad1 {[%emt 0:00:08]} a5 {[%emt 0:01:10]} 17. Qg5 {[%emt 0:00:30]} h6 {[%emt 0:00:39]} 18. Qf4 {[%emt 0:00:21]} Qc7 {[%emt 0:00:34]} 19. Qxc7 {[%emt 0:01:15]} Rxc7 {[%emt 0:00:02]} 20. Bxf6 {[%emt 0:00:02]} gxf6 {[%emt 0:00:01]} 21. c3 {[%emt 0:00:02]} Rd8 {[%emt 0:00:19]} 22. Rd4 {[%emt 0:00:02]} Rcd7 {[%emt 0:00:19]} 23. Red1 {[%emt 0:00:03]} Kf8 {[%emt 0:00:51]} 24. Rh4 {[%emt 0:00:21]} Kg7 {[%emt 0:00:07]} 25. g3 {[%emt 0:00:43]} Bf5 {[%emt 0:00:30]} 26. Kg2 {[%emt 0:00:41]} Be6 {[%emt 0:00:10]} 27. Rf4 {[%emt 0:00:06]} Rd6 {[%emt 0:00:18]} 28. Rfd4 {[%emt 0:00:02]} R6d7 {[%emt 0:00:05]} 29. Kg1 {[%emt 0:00:09]} Kf8 {[%emt 0:00:10]} 30. Rh4 {[%emt 0:00:06]} Kg7 {[%emt 0:00:02]} 31. Rh5 {[%emt 0:00:12]} Kg6 {[%emt 0:00:14]} 32. Rd4 {[%emt 0:00:23]} Bf5 {[%emt 0:00:07]} 33. Rdh4 {[%emt 0:00:49]} Rh8 {[%emt 0:00:06]} 34. Rf4 {[%emt 0:00:06]} Be6 {[%emt 0:00:02]} 35. Rd4 {[%emt 0:00:15]} Rhd8 {[%emt 0:00:02]} 36. Rhh4 {[%emt 0:00:02]} Rd6 {[%emt 0:00:09]} 37. Bh5+ {[%emt 0:00:15]} Kg7 {[%emt 0:00:03]} 38. Be2 {[%emt 0:00:07]} R6d7 {[%emt 0:00:05]} 39. Bb5 {[%emt 0:00:13]} Rd6 {[%emt 0:00:03]} 40. Rhf4 {[%emt 0:00:04]} Kg6 {[%emt 0:00:08]} 41. h4 {[%emt 0:00:03]} Bf5 {[%emt 0:00:09]} 42. Kf1 {[%emt 0:00:41]} h5 {[%emt 0:00:03]} 43. Be2 {[%emt 0:00:05]} R6d7 {[%emt 0:00:04]} 44. Bxh5+ {[%emt 0:00:02]} Kxh5 {[%emt 0:00:06]} 45. Rxf5+ {[%emt 0:00:02]} Kg6 {[%emt 0:00:01]} 46. Rf3 {[%emt 0:00:03]} Re7 {[%emt 0:00:02]} 47. Rg4+ {[%emt 0:00:18]} Kh5 {[%emt 0:00:11]} 48. Rgf4 {[%emt 0:00:12]} Re6 {[%emt 0:00:08]} 49. Rxf6 {[%emt 0:00:03]} d4 {[%emt 0:00:05]} 50. cxd4 {[%emt 0:00:20]} Rxf6 {[%emt 0:00:04]} 51. Rxf6 {[%emt 0:00:02]} Rxd4 {[%emt 0:00:03]} 52. Rxb6 {[%emt 0:00:03]} Rd7 {[%emt 0:00:05]} 53. Rb5+ {[%emt 0:00:03]} Kg6 {[%emt 0:00:02]} 54. Rxa5 {[%emt 0:00:02]} 1-0

[Event "Romanian Rapid Open 2022"]
[Site "Sebes"]
[Date "2022.12.02"]
[Round "6.1"]
[White "Ileana, George"]
[Black "Miron, Lucian-Costin"]
[Result "0-1"]
[ECO "C84"]
[WhiteElo "2343"]
[BlackElo "2510"]
[Annotator "TA"]
[PlyCount "86"]
[EventDate "2022.12.02"]
[EventType "rapid"]
[EventCountry "ROU"]
[SourceTitle "playchess.com"]
[Source "ChessBase"]
[SourceQuality "1"]
[TimeControl "600+5"]

{[%evp 16,86,35,35,60,40,47,26,27,20,35,24,26,28,22,-6,0,0,0,-19,-25,-24,-13,-22,-15,-33,-38,-22,-32,-34,-12,-39,-39,-34,-47,-262,-260,-423,-435,-445,-437,-383,-389,-402,-379,-486,-477,-584,-575,-671,-641,-1535,-1514,-1299,-861,-1122,-1122,-3802,-2837,-3090,-1407,-1335,-1261,-1485,-870,-29984,-29978,-29976,-29977,-29996,-29997,-29997,-29998]} 1. e4 {[%emt 0:00:01]} e5 {[%emt 0:00:02]} 2. Nf3 {[%emt 0:00:02]} Nc6 {[%emt 0:00:01]} 3. Bb5 {[%emt 0:00:04]} a6 {[%emt 0:00:01]} 4. Ba4 {[%emt 0:00:01]} Nf6 {[%emt 0:00:01]} 5. d3 {[%emt 0:00:02]} d6 {[%emt 0:00:08]} 6. c3 {[%emt 0:00:02]} Be7 {[%emt 0:00:32]} 7. O-O {[%emt 0:00:06]} O-O {[%emt 0:00:03]} 8. Re1 {[%emt 0:00:02] The main line 8.Re1 scores better than 8.Nbd2.} b5 {[%emt 0:00:09]} 9. Bc2 {[%emt 0:00:02]} Nb8 {[%emt 0:00:05] C84: Closed Ruy Lopez: Unusual White 6th moves.} 10. Nbd2 {[%emt 0:00:03][%cal Bb1d2,Bd2f1,Bf1g3][%mdl 32]} Nbd7 {[%emt 0:00:05]} 11. Nf1 {[%emt 0:00:02]} Bb7 {[%emt 0:00:01] White has an edge.} 12. Ng3 {[%emt 0:00:03]} g6 {[%emt 0:00:02]} 13. d4 {[%emt 0:00:10]} Re8 {[%emt 0:00:07]} 14. a4 {[%emt 0:00:13]} Bf8 {[%emt 0:00:21]} 15. d5 {[%emt 0:00:42]} c6 {[%emt 0:00:14]} 16. dxc6 Bxc6 {[%emt 0:00:02]} 17. h3 {[%emt 0:01:16]} Nc5 {[%emt 0:00:17][%cal Bd7c5,Bc5e6,Be6f4,Bf4h3][%mdl 32]} 18. a5 {[%emt 0:00:28]} Qc7 {[%emt 0:01:14] [#]} 19. Bg5 $146 {[%emt 0:00:11] Inhibits d5.} ({Predecessor:} 19. b4 Ne6 20. Be3 Qb7 21. Ng5 Nd8 22. Bb6 h6 23. Nf3 {0-1 (31) Jimenez Hernandez,C (2320)-Gomez Ledo,R (2446) Dos Hermanas 2021}) 19... Bg7 {[%emt 0:00:01]} 20. Qd2 {[%emt 0:00:29]} Rad8 {[%emt 0:00:01]} 21. b4 {[%emt 0:00:40]} Ne6 {[%emt 0:00:04]} 22. Be3 {[%emt 0:00:09]} Qb7 {[%emt 0:00:09] Threatens to win with ...d5.} 23. Bb6 {[%emt 0:00:08] Against d5} Rd7 {[%emt 0:00:01]} 24. Rad1 {[%emt 0:00:12]} Nf4 {[%emt 0:00:58]} 25. Nd4 $2 {[%emt 0:02:13] This move loses the game for White.} Bh6 $19 {[%emt 0:00:29]} 26. Kh2 {[%emt 0:00:34]} (26. Kh1 {was the only chance.} exd4 27. Bxd4) 26... exd4 {[%emt 0:00:10]} 27. Bxd4 {[%emt 0:00:02] [#]} Nxh3 $1 {[%emt 0:01:39][%mdl 512]} 28. Qe2 {[%emt 0:00:42]} (28. Qd3 Nf4) 28... Nf4 {[%emt 0:01:34]} 29. Qf3 {[%emt 0:01:01] [#]} Re5 $1 {[%emt 0:00:22][%cal Od7c7]} 30. Bxe5 {[%emt 0:00:22]} (30. Kg1 Bg5) 30... dxe5 {[%emt 0:00:02]} 31. Rxd7 {[%emt 0:00:10]} Bxd7 {[%emt 0:00:09][%cal Bc6d7,Bd7e6,Be6g4,Bg4e2][%mdl 32]} 32. Qd1 {[%emt 0:00:17]} Qc7 {[%emt 0:00:14] Against Qd6} 33. Qa1 {[%emt 0:00:31]} Ng4+ {[%emt 0:00:23]} 34. Kg1 {[%emt 0:00:01]} Qa7 {[%emt 0:00:01]} 35. Rf1 {[%emt 0:00:12]} Be6 {[%emt 0:00:16]} 36. Bd1 {[%emt 0:00:16] [#]} Nxf2 $1 {[%emt 0:00:48][%mdl 512] ( -> ...Ng4+)} 37. Kh2 {[%emt 0:00:24]} (37. Nf5 Nxe4+) 37... Ng4+ {[%emt 0:00:13]} (37... N4d3 $142 38. Nh1 Bf4+ 39. g3 {[#]} Qe3 $1) 38. Bxg4 {[%emt 0:00:05]} Bxg4 {[%emt 0:00:02]} 39. Qb1 {[%emt 0:00:16]} Qe3 {[%emt 0:00:14] ...Qd2 is the strong threat.} 40. c4 {[%emt 0:00:11]} Ne2 {[%emt 0:00:47] Black mates.} 41. Nxe2 {[%emt 0:00:40]} Bxe2 {[%emt 0:00:02]} 42. Re1 {[%emt 0:00:10]} Bf4+ {[%emt 0:00:01]} 43. Kh1 {[%emt 0:00:02] [#]} Qg3 $1 {[%emt 0:00:01] Weighted Error Value: White=1.06/Black=0.62} 0-1

[Event "Romanian Rapid Open 2022"]
[Site "Sebes"]
[Date "2022.12.02"]
[Round "6.2"]
[White "Dragomirescu, Robin-Alexandru"]
[Black "Gavrilescu, David"]
[Result "0-1"]
[ECO "A01"]
[WhiteElo "2337"]
[BlackElo "2523"]
[Annotator "TA"]
[PlyCount "100"]
[EventDate "2022.12.02"]
[EventType "rapid"]
[EventCountry "ROU"]
[SourceTitle "playchess.com"]
[Source "ChessBase"]
[SourceQuality "1"]
[TimeControl "600+5"]

{[%evp 9,100,-13,-18,-27,-17,-23,42,29,35,0,-14,-7,-19,-189,-214,-196,-116,-83,-93,-110,0,0,0,0,0,0,0,0,0,0,0,-69,-21,-89,-92,-93,0,-717,-689,-719,361,-323,-306,-322,-323,-323,-244,-235,-236,-414,-308,-549,-396,-395,-395,-385,-375,-385,-385,-470,-477,-478,-450,-470,-406,-589,-491,-810,-802,-791,-748,-712,-615,-697,-687,-654,-643,-1068,-973,-1202,-1160,-1133,-1112,-1111,-872,-5857,-5846,-2240,-1976,-12835,-12835,-5189,-1410]} 1. b3 {[%emt 0:00:02]} e5 {[%emt 0:00:03]} 2. Bb2 {[%emt 0:00:01]} Nc6 {[%emt 0:00:03]} 3. e3 {[%emt 0:00:02]} f6 {[%emt 0:00:06]} 4. c4 {[%emt 0:00:43]} d5 {[%emt 0:00:01]} 5. cxd5 {[%emt 0:00:08]} Qxd5 {[%emt 0:00:02]} 6. Nc3 {[%emt 0:00:07] A01: Nimzowitsch-Larsen Opening.} Qf7 {[%emt 0:00:02]} 7. Nf3 {[%emt 0:01:09] [#]} Bf5 $146 {[%emt 0:00:32]} ({Better is} 7... Be6 $11) ({Predecessor:} 7... Be6 8. d4 O-O-O 9. Be2 g5 10. h3 h5 11. Rc1 Nh6 12. Nb5 g4 13. Nd2 Bb4 14. hxg4 hxg4 15. Bf1 Kb8 16. Bc4 a6 17. Na3 exd4 18. exd4 Nxd4 {0-1 (18) Molano Lafuente,I (2013)-Plazuelo Pascual,J (2462) Barcelona 2021}) 8. d4 {[%emt 0:01:26] White is slightly better.} exd4 {[%emt 0:00:39]} 9. Nxd4 {[%emt 0:00:12]} (9. Bc4 $1 $14 Qg6 10. Nh4 (10. Nxd4 O-O-O $11)) 9... O-O-O $1 $11 {[%emt 0:01:15] Black wants to play ...Nxd4.} 10. Bc4 {[%emt 0:02:04]} Qg6 {[%emt 0:00:07] White must now prevent ...Nxd4.} 11. Nxc6 {[%emt 0:01:07]} (11. O-O $11) 11... Rxd1+ $19 {[%emt 0:00:03]} 12. Rxd1 {[%emt 0:00:02][%csl Gc6][%cal Rd1d8]} Bd6 {[%emt 0:00:23]} (12... Be7 $1 $19 13. Nxe7+ Nxe7) 13. Nxa7+ $17 {[%emt 0:00:12]} Kb8 {[%emt 0:00:01]} 14. Nab5 {[%emt 0:00:02]} Ne7 {[%emt 0:01:03]} (14... Qxg2 15. Bd5 Qg6 16. Nxd6 cxd6 17. Ba3 $14) (14... Be7 $1 $17 {...c6 is the strong threat.} 15. Kf1 Nh6) 15. Nxd6 $11 {[%emt 0:00:12]} cxd6 {[%emt 0:00:04]} 16. Ba3 {[%emt 0:01:30][%cal Bb2a3,Ba3d6,Bd6g3][%mdl 32]} Qxg2 {[%emt 0:00:10]} 17. Bxd6+ {[%emt 0:00:03]} Ka8 {[%emt 0:00:02]} 18. Rf1 {[%emt 0:00:15]} Nc8 {[%emt 0:02:47]} 19. Bg3 {[%emt 0:00:52] A strong pair of Bishops.} Nb6 {[%emt 0:00:03] Against Rd5} 20. Bd5 {[%emt 0:00:17]} (20. Be2 $11) 20... Qh3 {[%emt 0:00:04]} (20... Nxd5 $15 21. Rxd5 b6 22. Rxf5 Rc8) 21. Rd4 {[%emt 0:01:12]} (21. Bf3 $11) 21... Rc8 $17 {[%emt 0:00:30][%mdl 1024] Black has strong compensation.} 22. Ne2 {[%emt 0:00:07]} ({Avoid the trap} 22. Rh4 $2 Rxc3 23. Rxh3 Bxh3 $19) 22... Be6 {[%emt 0:00:29]} (22... Qh5 $17 {aiming for ...Ka7.} 23. f3 Bd7) 23. Rh4 $2 {[%emt 0:00:08][%mdl 8192]} (23. Bxe6 $11 Qxe6 24. Kd2 (24. Rd6 $2 Qe4 $19)) 23... Qf5 $19 {[%emt 0:00:04]} 24. e4 {[%emt 0:00:05] [#]} Qg5 {[%emt 0:00:38][%mdl 8192]} (24... Qf3 $1 $19 {[%cal Oc8c2] ( -> ...Rc2!)} 25. Kd2 Bxd5 26. exd5 {[#]} Rc2+ $3 {[%mdl 512]} 27. Kxc2 Qxe2+ 28. Kc1 Qxf1+ 29. Kd2 Qb1) 25. Bxe6 $4 {[%emt 0:00:04][%mdl 8192]} (25. f4 $18 {was the only winning move.} Qxh4 26. Bxh4 Nxd5 27. exd5 Bxd5 28. Kd2) 25... Qa5+ {[%emt 0:00:09]} 26. Kd1 {[%emt 0:00:05]} Rd8+ {[%emt 0:00:03]} 27. Bd5 {[%emt 0:00:05]} Nxd5 $40 {[%emt 0:00:09][%mdl 128] Black attacks with force.} 28. exd5 {[%emt 0:00:01]} Rxd5+ {[%emt 0:00:02]} 29. Nd4 $2 {[%emt 0:00:10]} (29. Rd4 Rxd4+ 30. Nxd4) 29... Qxa2 {[%emt 0:00:42] The board is on fire.} 30. Re1 $2 {[%emt 0:00:05] [#]} (30. f3 {was forced.} Qxb3+ 31. Ke2 Qb2+ 32. Ke3) 30... Rxd4+ $1 {[%emt 0:00:30][%mdl 576] Decoy} 31. Rxd4 {[%emt 0:00:01]} Qa1+ {[%emt 0:00:01][%mdl 64] Skewer, Double Attack} ({Don't play} 31... Qxb3+ 32. Ke2 Qb2+ 33. Rd2 Qb5+ 34. Kf3 Qc6+ 35. Re4 $18) 32. Kc2 {[%emt 0:00:08][%cal Re1a1]} Qxd4 {[%emt 0:00:02][%mdl 4096] Endgame KQ-KRB} 33. Re3 {[%emt 0:00:07]} Ka7 {[%emt 0:00:05]} 34. h4 {[%emt 0:00:05]} f5 {[%emt 0:00:03] Hoping for ...f4.} 35. Rd3 {[%emt 0:00:05] Against f4} Qe4 {[%emt 0:00:23] And now ...f4 would win.} 36. f4 {[%emt 0:00:03]} Qg2+ {[%emt 0:00:09]} 37. Kc3 {[%emt 0:00:03]} (37. Kd1 $142) 37... Ka6 {[%emt 0:00:09] Black is clearly winning.} 38. Kc4 {[%emt 0:00:06]} (38. Be1 $142 Qh1 39. Re3) 38... b6 {[%emt 0:00:11]} 39. Kd4 {[%emt 0:00:07]} Kb5 {[%emt 0:00:02]} 40. Kc3 {[%emt 0:00:02]} Kc5 {[%emt 0:00:07]} 41. Re3 {[%emt 0:00:07]} b5 {[%emt 0:00:07] Threatens to win with ...b4+.} 42. Re5+ {[%emt 0:00:07]} Kc6 {[%emt 0:00:01]} 43. Re3 {[%emt 0:00:01]} h6 {[%emt 0:00:08]} 44. Rd3 {[%emt 0:00:09]} Kc5 {[%emt 0:00:07][%csl Gc5][%cal Rb5b4]} 45. b4+ {[%emt 0:00:04]} Kc6 {[%emt 0:00:01]} 46. Re3 {[%emt 0:00:03]} Qa2 {[%emt 0:00:06]} 47. Rd3 {[%emt 0:00:07]} Qc4+ {[%emt 0:00:02]} 48. Kd2 {[%emt 0:00:01]} Qxb4+ {[%emt 0:00:00]} 49. Ke3 {[%emt 0:00:02]} Qe4+ {[%emt 0:00:03]} 50. Kd2 {[%emt 0:00:01]} b4 {[%emt 0:00:02] Weighted Error Value: White=1.04/Black=0.56} (50... Qg2+ $142 51. Ke1 b4) 0-1

[Event "Romanian Rapid Open 2022"]
[Site "Sebes"]
[Date "2022.12.02"]
[Round "6.3"]
[White "Dragomirescu, Angela"]
[Black "Ardelean, George-Catalin"]
[Result "1/2-1/2"]
[ECO "A07"]
[WhiteElo "2104"]
[BlackElo "2473"]
[Annotator "TA"]
[PlyCount "86"]
[EventDate "2022.12.02"]
[EventType "rapid"]
[EventCountry "ROU"]
[SourceTitle "playchess.com"]
[Source "ChessBase"]
[SourceQuality "1"]
[TimeControl "600+5"]

{[%evp 9,86,-4,-12,-8,-8,-16,15,16,23,-4,-15,-6,7,0,0,0,0,0,-7,0,19,21,53,53,50,50,60,61,51,55,72,49,53,41,54,16,16,20,24,23,23,17,16,15,11,12,20,0,0,0,9,4,7,0,8,10,15,9,9,16,50,60,58,0,86,43,52,0,92,0,60,0,63,77,85,50,50,58,193]} 1. Nf3 {[%emt 0:00:03]} d5 {[%emt 0:00:02]} 2. g3 {[%emt 0:00:04]} Nc6 {[%emt 0:00:48]} 3. Bg2 {[%emt 0:00:35]} e5 {[%emt 0:00:03]} 4. d3 {[%emt 0:00:01]} Be6 {[%emt 0:00:47]} 5. c3 {[%emt 0:00:06]} h6 {[%emt 0:00:06]} 6. Nbd2 {[%emt 0:00:59] A07: Réti Opening: New York and Capablanca Systems.} Nf6 {[%emt 0:00:02]} 7. O-O {[%emt 0:00:40]} Qd7 {[%emt 0:00:33]} 8. b4 {[%emt 0:00:15] The position is equal.} Bd6 {[%emt 0:00:12]} 9. e4 {[%emt 0:00:31]} dxe4 {[%emt 0:00:21] [#]} 10. dxe4 $146 {[%emt 0:00:02]} ({Predecessor:} 10. Nxe4 Nxe4 11. dxe4 O-O-O 12. Qa4 Kb8 13. b5 Ne7 14. Rd1 f6 15. Be3 Nc8 16. c4 {0-1 (49) Piskunov,A (2174)-Egitov,A (2021) Berdsk 2010}) 10... O-O {[%emt 0:00:20]} 11. Bb2 {[%emt 0:01:05]} a5 {[%emt 0:00:34]} 12. a3 {[%emt 0:00:13]} Ne7 {[%emt 0:00:53]} 13. Qe2 {[%emt 0:00:18]} Ng6 {[%emt 0:00:11]} 14. Nc4 {[%emt 0:00:45]} axb4 {[%emt 0:01:05]} (14... Qb5 $5 15. Nfd2 $8 axb4 16. cxb4 (16. axb4 c5 $11) 16... Rfd8 $11) 15. cxb4 {[%emt 0:00:33][%cal Rc4e5]} Qb5 {[%emt 0:01:10]} 16. Rfc1 {[%emt 0:00:08]} Rfe8 {[%emt 0:00:21]} 17. Qc2 {[%emt 0:00:20][%cal Of3e5]} Bxc4 {[%emt 0:01:13]} 18. Qxc4 {[%emt 0:00:02]} Qxc4 {[%emt 0:00:01]} 19. Rxc4 {[%emt 0:00:02]} Nd7 {[%emt 0:00:01]} 20. h4 {[%emt 0:00:32]} Nb6 {[%emt 0:00:01]} 21. Rc2 {[%emt 0:00:05]} Na4 {[%emt 0:00:03]} 22. Bf1 {[%emt 0:01:19]} Nxb2 {[%emt 0:00:09]} 23. Rxb2 {[%emt 0:00:01]} Red8 {[%emt 0:00:10]} 24. a4 {[%emt 0:01:13]} Ne7 {[%emt 0:00:03]} 25. b5 {[%emt 0:00:59] Prevents Nc6.} b6 {[%emt 0:00:01]} 26. Bc4 {[%emt 0:00:17]} Kf8 {[%emt 0:00:32]} 27. Kf1 {[%emt 0:00:11]} Bc5 {[%emt 0:00:13]} 28. Rd2 {[%emt 0:00:13]} Rxd2 {[%emt 0:00:18]} 29. Nxd2 {[%emt 0:00:01]} Rd8 {[%emt 0:00:22]} 30. Nb3 {[%emt 0:00:02] [#] Threatens to win with Nxc5.} Bb4 {[%emt 0:00:02]} 31. Ke2 {[%emt 0:00:07]} Ng8 {[%emt 0:00:33]} 32. Bd5 {[%emt 0:00:09]} Nf6 {[%emt 0:00:02]} 33. Bc6 {[%emt 0:00:27]} Ke7 {[%emt 0:00:09]} 34. Rc1 {[%emt 0:00:13]} Rd6 {[%emt 0:00:21]} 35. Rc4 {[%emt 0:00:04]} Ba5 {[%emt 0:00:01]} 36. Rc1 {[%emt 0:00:14]} (36. Nxa5 $14 bxa5 37. f4) 36... h5 {[%emt 0:00:04]} (36... Bb4 $11) 37. Bb7 {[%emt 0:00:06]} Kd8 {[%emt 0:00:06]} 38. Bc6 {[%emt 0:00:05]} Ke7 $1 {[%emt 0:00:40]} 39. Bb7 {[%emt 0:00:02] [#] Strongly threatening f4.} Kd8 $1 {[%emt 0:00:32]} 40. Bc6 {[%emt 0:00:01]} (40. Ba8 $14) 40... Bb4 {[%emt 0:00:12]} ({Black should try} 40... Ke7 $1 $11) 41. Rc4 {[%emt 0:00:02]} Ba3 {[%emt 0:00:03]} 42. a5 {[%emt 0:00:11]} bxa5 43. Nxa5 {[%emt 0:00:01] Hoping for Ra4.} Ke7 {[%emt 0:00:10] Weighted Error Value: White=0.14 (very precise) /Black=0.11 (very precise)} (43... Rd4 $1 $14) 1/2-1/2